bitfinex/quotes_SOLUSD_20230905
["timestamp","ask_amount","ask_price","bid_price","bid_amount"]
[1693933619962,7.689,20.288,20.272,62.695]
[1693933623962,99.51259624,20.29,20.272,62.695]
[1693933624164,14.99259624,20.29,20.273,20.0]
[1693933624378,14.99259624,20.29,20.278,7.693]
[1693933625471,22.68059624,20.29,20.275,7.693]
[1693933626975,14.99259624,20.29,20.275,7.693]
[1693933627181,14.99259624,20.29,20.276,55.49999999]
[1693933627366,14.99259624,20.29,20.276,55.0]
[1693933627674,14.99259624,20.29,20.275,55.0]
[1693933627878,14.99259624,20.29,20.275,0.49999999]
[1693933628481,14.99259624,20.29,20.275,7.694]
[1693933628681,62.687,20.294,20.276,55.0]
[1693933628867,7.687,20.294,20.28,7.692]
[1693933630078,148.1114,20.295,20.28,7.692]
[1693933630379,7.687,20.294,20.277,7.693]
[1693933630565,7.689,20.288,20.273,27.694]
[1693933630760,7.688,20.29,20.273,27.694]
[1693933630975,7.687,20.292,20.273,27.694]
[1693933631164,7.687,20.292,20.273,7.694]
[1693933631376,7.687,20.292,20.274,20.0]
[1693933631673,7.687,20.292,20.275,7.694]
[1693933632484,20.0,20.291,20.275,7.694]
[1693933632667,7.688,20.29,20.275,7.694]
[1693933632867,20.0,20.289,20.275,7.694]
[1693933633677,20.0,20.289,20.276,55.0]
[1693933633887,160.65116375,20.295,20.279,7.692]
[1693933633888,148.1114,20.295,20.279,7.692]
[1693933634078,148.1114,20.295,20.283,7.69]
[1693933634079,93.1114,20.295,20.283,7.69]
[1693933634389,7.685,20.298,20.28,84.52]
[1693933634390,7.686,20.296,20.284,55.0]
[1693933634770,7.686,20.296,20.282,55.0]
[1693933635579,7.685,20.298,20.282,7.691]
[1693933635781,20.0,20.297,20.283,55.0]
[1693933635984,20.0,20.297,20.283,62.69]
[1693933636470,20.0,20.299,20.283,62.69]
[1693933636864,27.685,20.299,20.283,62.69]
[1693933637281,27.685,20.299,20.283,55.0]
[1693933637466,27.685,20.299,20.283,62.69]
[1693933639690,27.685,20.299,20.283,55.0]
[1693933639985,40.22476375,20.299,20.28,29.52]
[1693933640280,7.687,20.292,20.275,7.694]
[1693933640479,7.687,20.292,20.273,7.694]
[1693933640885,7.687,20.292,20.274,0.49999999]
[1693933641072,7.687,20.292,20.277,7.693]
[1693933641668,7.687,20.292,20.278,55.0]
[1693933644389,7.687,20.292,20.277,7.693]
[1693933644571,7.687,20.292,20.278,55.0]
[1693933645284,7.687,20.292,20.276,55.0]
[1693933646087,7.687,20.292,20.276,62.693]
[1693933647981,7.687,20.292,20.28,29.53]
[1693933651281,7.687,20.292,20.271,38.94965448]
[1693933651482,7.69,20.284,20.27,29.53]
[1693933652090,98.3746,20.289,20.27,37.225]
[1693933652279,98.3746,20.289,20.27,77.86928225]
[1693933652476,98.3746,20.289,20.273,7.694]
[1693933652692,98.3746,20.289,20.274,55.0]
[1693933652872,98.3746,20.289,20.27,29.55]
[1693933653076,55.0,20.288,20.267,0.49999999]
[1693933653294,55.0,20.288,20.266,25.72065894]
[1693933653476,4.94461036,20.287,20.263,22.72317274]
[1693933653682,55.0,20.286,20.263,22.72317274]
[1693933653990,4.94461036,20.285,20.263,47.29257499]
[1693933654189,55.0,20.284,20.263,24.56940225]
[1693933654375,4.94461036,20.283,20.261,38.9383325]
[1693933654577,4.94461036,20.283,20.262,7.699]
[1693933654779,4.94461036,20.281,20.262,7.699]
[1693933655090,4.94461036,20.281,20.26,29.55]
[1693933655292,55.0,20.28,20.26,29.55]
[1693933655797,4.94461036,20.279,20.26,29.55]
[1693933655989,95.88141036,20.279,20.26,29.55]
[1693933656194,95.88141036,20.279,20.26,37.249]
[1693933656678,95.88141036,20.279,20.261,55.0]
[1693933657292,4.94461036,20.279,20.261,62.699]
[1693933657593,95.88141036,20.279,20.261,62.699]
[1693933657793,95.88141036,20.279,20.261,112.14340225]
[1693933657996,4.94461036,20.279,20.262,44.56940225]
[1693933658292,44.53519979,20.29,20.267,7.697]
[1693933658293,4.94461036,20.287,20.267,7.697]
[1693933658491,4.94461036,20.289,20.268,55.0]
[1693933658693,44.5352,20.287,20.268,55.0]
[1693933658884,4.94461036,20.286,20.268,55.0]
[1693933659384,4.94461036,20.286,20.268,62.696]
[1693933660494,4.94461036,20.286,20.268,87.26540225]
[1693933661391,4.94461036,20.286,20.27,29.55]
[1693933661599,4.94461036,20.286,20.274,7.694]
[1693933661892,4.94461036,20.288,20.271,55.0]
[1693933662095,4.94461036,20.288,20.272,7.695]
[1693933662297,4.94461036,20.288,20.273,55.0]
[1693933663695,4.94461036,20.288,20.273,62.694]
[1693933665393,4.94461036,20.289,20.273,62.694]
[1693933666688,4.94461036,20.289,20.273,78.7665]
[1693933666889,24.94461036,20.295,20.273,78.7665]
[1693933667288,12.53976375,20.294,20.273,16.0725]
[1693933667500,59.94461036,20.293,20.273,16.0725]
[1693933667691,72.48437411,20.293,20.271,7.695]
[1693933668300,59.94461036,20.293,20.271,7.695]
[1693933668493,59.94461036,20.293,20.27,29.55]
[1693933668494,12.53976375,20.292,20.27,29.55]
[1693933668694,12.53976375,20.292,20.262,65.19667656]
[1693933668695,59.94461036,20.291,20.262,40.32267656]
[1693933668900,12.53976375,20.29,20.263,20.0]
[1693933669104,59.94461036,20.289,20.263,20.0]
[1693933669307,12.53976375,20.288,20.263,27.698]
[1693933669491,59.94461036,20.287,20.263,7.698]
[1693933669691,59.94461036,20.287,20.264,20.0]
[1693933669991,59.94461036,20.287,20.266,7.697]
[1693933670397,59.94461036,20.287,20.264,27.698]
[1693933670706,125.25196436,20.287,20.264,27.698]
[1693933671695,125.25196436,20.287,20.265,55.0]
[1693933671887,125.25196436,20.287,20.266,7.697]
[1693933672088,125.25196436,20.287,20.267,55.0]
[1693933673388,125.25196436,20.287,20.267,62.697]
[1693933676791,70.25196436,20.287,20.27,29.55]
[1693933676991,70.25196436,20.287,20.272,7.695]
[1693933677608,70.25196436,20.287,20.27,37.245]
[1693933677794,70.25196436,20.287,20.271,55.0]
[1693933681109,4.94461036,20.287,20.271,62.695]
[1693933681293,4.94461036,20.287,20.272,20.0]
[1693933681606,4.94461036,20.299,20.276,7.693]
[1693933681833,118.2,20.295,20.277,55.0]
[1693933682102,4.94461036,20.294,20.277,55.0]
[1693933682305,29.55,20.29,20.272,16.07329]
[1693933682489,4.94461036,20.288,20.273,20.0]
[1693933682690,4.94461036,20.288,20.271,7.695]
[1693933683011,4.94461036,20.289,20.271,7.695]
[1693933683701,44.87748236,20.289,20.27,55.0]
[1693933683895,141.16648236,20.289,20.27,55.0]
[1693933684295,141.16648236,20.289,20.27,62.695]
[1693933684493,141.16648236,20.289,20.27,121.795]
[1693933684697,141.16648236,20.289,20.27,226.51988]
[1693933685197,4.94461036,20.289,20.276,7.693]
[1693933685405,4.94461036,20.296,20.276,7.693]
[1693933685613,12.53976375,20.295,20.276,7.693]
[1693933685804,40.347312,20.29,20.276,7.693]
[1693933686005,4.94461036,20.289,20.27,243.68788]
[1693933686311,4.94461036,20.289,20.272,7.695]
[1693933686497,4.94461036,20.289,20.27,45.62488]
[1693933686694,55.0,20.288,20.27,16.07488]
[1693933687004,4.94461036,20.287,20.27,16.07488]
[1693933687199,4.94461036,20.287,20.267,7.697]
[1693933687815,4.94461036,20.287,20.268,55.0]
[1693933688012,4.94461036,20.287,20.264,39.93287264]
[1693933688193,55.0,20.286,20.264,7.698]
[1693933688398,4.94461036,20.285,20.262,39.06890865]
[1693933688714,4.94461036,20.285,20.262,24.56940225]
[1693933688715,55.0,20.284,20.262,24.56940225]
[1693933688912,29.55,20.28,20.256,15.13770976]
[1693933689208,166.44017411,20.279,20.258,7.7]
[1693933689798,191.32417411,20.279,20.258,7.7]
[1693933690699,191.32417411,20.279,20.256,7.701]
[1693933691807,178.78441036,20.279,20.256,7.701]
[1693933692209,178.78441036,20.279,20.257,62.7]
[1693933692805,123.78441036,20.279,20.262,7.699]
[1693933693005,123.78441036,20.279,20.26,29.55]
[1693933693202,123.78441036,20.279,20.261,55.0]
[1693933694225,123.78441036,20.279,20.253,54.7285291]
[1693933694402,123.78441036,20.279,20.254,75.0]
[1693933694699,123.78441036,20.279,20.256,7.701]
[1693933694700,55.0,20.278,20.256,7.701]
[1693933694897,4.94461036,20.277,20.256,7.701]
[1693933695120,4.94461036,20.275,20.256,7.701]
[1693933695301,4.94461036,20.273,20.256,7.701]
[1693933695505,4.94461036,20.277,20.256,7.701]
[1693933695706,4.94461036,20.275,20.256,7.701]
[1693933695904,4.94461036,20.273,20.256,7.701]
[1693933696114,4.94461036,20.275,20.256,7.701]
[1693933696323,55.0,20.274,20.256,7.701]
[1693933696521,4.94461036,20.273,20.256,7.701]
[1693933696725,4.94461036,20.273,20.257,55.0]
[1693933697018,4.94461036,20.278,20.257,55.0]
[1693933697220,55.0,20.277,20.257,55.0]
[1693933697408,4.94461036,20.276,20.256,7.701]
[1693933697605,55.0,20.275,20.254,27.702]
[1693933697806,4.94461036,20.274,20.255,55.0]
[1693933698006,55.0,20.273,20.254,7.702]
[1693933698202,4.94461036,20.272,20.254,7.702]
[1693933701614,4.94461036,20.278,20.255,55.0]
[1693933701815,121.615504,20.274,20.255,55.0]
[1693933702016,4.94461036,20.273,20.255,55.0]
[1693933703431,4.94461036,20.273,20.255,62.701]
[1693933709030,4.94461036,20.273,20.255,7.701]
[1693933709232,7.696,20.27,20.255,7.701]
[1693933709427,4.94461036,20.269,20.255,7.701]
[1693933710336,12.64061036,20.269,20.254,48.19482715]
[1693933710717,4.94461036,20.269,20.254,48.19482715]
[1693933711032,4.94461036,20.27,20.254,48.19482715]
[1693933714335,7.696,20.269,20.254,48.19482715]
[1693933714519,4.94461036,20.268,20.254,48.19482715]
[1693933715033,7.695,20.271,20.254,48.19482715]
[1693933715034,4.94461036,20.27,20.254,48.19482715]
[1693933715216,4.94461036,20.27,20.254,7.701]
[1693933715217,7.696,20.269,20.254,7.701]
[1693933715424,4.94461036,20.268,20.254,7.701]
[1693933719634,7.696,20.27,20.254,7.701]
[1693933719841,4.94461036,20.269,20.254,7.701]
[1693933720831,7.695,20.272,20.254,7.701]
[1693933721038,4.94461036,20.271,20.259,7.699]
[1693933721435,4.94461036,20.274,20.259,7.699]
[1693933721735,4.94461036,20.277,20.259,7.699]
[1693933721940,64.977409,20.274,20.259,7.699]
[1693933722118,4.94461036,20.273,20.263,7.698]
[1693933722532,4.94461036,20.278,20.264,55.0]
[1693933722838,4.94461036,20.278,20.266,7.697]
[1693933725729,4.94461036,20.278,20.267,55.0]
[1693933726039,39.32082921,20.283,20.267,55.0]
[1693933726040,4.94461036,20.282,20.27,7.695]
[1693933726735,4.94461036,20.284,20.27,7.695]
[1693933726938,19.739475,20.283,20.27,7.695]
[1693933727134,4.94461036,20.282,20.27,7.695]
[1693933727734,4.94461036,20.285,20.271,55.0]
[1693933727936,59.94461036,20.285,20.272,7.695]
[1693933728438,67.63461036,20.285,20.27,7.696]
[1693933728739,67.63461036,20.285,20.268,7.696]
[1693933730638,59.94461036,20.285,20.27,7.696]
[1693933730824,4.94461036,20.285,20.27,37.246]
[1693933731021,4.94461036,20.287,20.271,55.0]
[1693933731237,7.69,20.285,20.271,55.0]
[1693933731429,4.94461036,20.284,20.271,55.0]
[1693933731626,7.691,20.283,20.271,55.0]
[1693933732031,4.94461036,20.282,20.271,55.0]
[1693933732427,4.94461036,20.282,20.27,29.55]
[1693933732627,4.94461036,20.284,20.271,62.695]
[1693933732925,4.94461036,20.285,20.271,62.695]
[1693933736242,4.94461036,20.287,20.271,62.695]
[1693933736440,7.69,20.284,20.271,55.0]
[1693933736642,4.94461036,20.283,20.271,55.0]
[1693933736827,4.94461036,20.283,20.271,62.695]
[1693933737034,4.94461036,20.285,20.271,62.695]
[1693933737742,12.63461036,20.285,20.271,62.695]
[1693933738731,4.94461036,20.285,20.271,62.695]
[1693933738930,4.94461036,20.286,20.271,62.695]
[1693933744041,4.94461036,20.287,20.271,87.558]
[1693933744246,7.687,20.293,20.276,7.693]
[1693933744247,4.94461036,20.292,20.276,7.693]
[1693933744443,4.94461036,20.292,20.272,44.56940225]
[1693933744444,4.94461036,20.292,20.277,62.693]
[1693933745036,37.46361036,20.292,20.277,62.693]
[1693933745340,4.94461036,20.297,20.282,7.691]
[1693933746055,59.94461036,20.297,20.282,7.691]
[1693933746843,67.63061036,20.297,20.28,37.242]
[1693933747048,67.63061036,20.297,20.281,55.0]
[1693933748034,12.63061036,20.297,20.281,55.0]
[1693933749153,67.63061036,20.297,20.281,55.0]
[1693933749637,12.63061036,20.297,20.281,62.691]
[1693933750154,66.81661036,20.297,20.281,62.691]
[1693933750559,59.13061036,20.297,20.281,62.691]
[1693933750762,4.94461036,20.297,20.281,62.691]
[1693933750943,7.686,20.296,20.281,62.691]
[1693933751256,4.94461036,20.295,20.281,62.691]
[1693933754551,4.94461036,20.296,20.282,16.06537]
[1693933754762,7.682,20.306,20.286,32.532]
[1693933754959,4.94461036,20.305,20.286,73.16360225]
[1693933755151,4.94461036,20.305,20.292,7.687]
[1693933755351,4.94461036,20.305,20.293,55.0]
[1693933755563,12.62761036,20.305,20.29,7.688]
[1693933755746,12.62761036,20.305,20.289,7.688]
[1693933755944,12.62761036,20.305,20.29,55.0]
[1693933756143,7.684,20.302,20.29,55.0]
[1693933756361,4.94461036,20.301,20.288,55.0]
[1693933756748,55.0,20.3,20.286,16.0622]
[1693933756955,86.718,20.296,20.286,16.0622]
[1693933757152,4.94461036,20.295,20.286,16.0622]
[1693933757363,7.687,20.293,20.286,16.0622]
[1693933757548,4.94461036,20.292,20.286,16.0622]
[1693933758169,4.94461036,20.295,20.286,16.0622]
[1693933758667,52.27056536,20.295,20.277,47.3259551]
[1693933759954,52.27056536,20.295,20.275,7.694]
[1693933760158,4.94461036,20.293,20.273,32.26340225]
[1693933760455,4.94461036,20.291,20.274,20.0]
[1693933760763,55.0,20.29,20.274,27.694]
[1693933760963,4.94461036,20.289,20.274,27.694]
[1693933761364,4.94461036,20.294,20.274,27.694]
[1693933761561,4.94461036,20.292,20.274,27.694]
[1693933761879,4.94461036,20.29,20.274,27.694]
[1693933762857,4.94461036,20.29,20.275,55.0]
[1693933763058,4.94461036,20.29,20.275,62.693]
[1693933764164,34.49461036,20.29,20.273,7.694]
[1693933764472,55.0,20.289,20.267,7.697]
[1693933764774,4.94461036,20.288,20.263,7.698]
[1693933765065,29.55,20.28,20.261,7.699]
[1693933765272,7.693,20.277,20.261,7.699]
[1693933765464,4.94461036,20.276,20.261,7.699]
[1693933765656,7.694,20.275,20.261,7.699]
[1693933765858,4.94461036,20.274,20.256,40.39467192]
[1693933766168,55.0,20.273,20.257,7.7]
[1693933766367,4.94461036,20.272,20.257,7.7]
[1693933766667,4.94461036,20.273,20.257,7.7]
[1693933766872,4.94461036,20.275,20.257,7.7]
[1693933767174,55.0,20.274,20.257,7.7]
[1693933767372,4.94461036,20.273,20.257,32.26940225]
[1693933768274,4.94461036,20.273,20.258,55.0]
[1693933768573,4.94461036,20.273,20.26,7.699]
[1693933769656,7.694,20.274,20.258,7.7]
[1693933769860,55.0,20.272,20.256,7.701]
[1693933770072,4.94461036,20.271,20.256,7.701]
[1693933770372,4.94461036,20.272,20.256,32.27040225]
[1693933770567,4.94461036,20.274,20.256,32.27040225]
[1693933771269,4.94461036,20.274,20.257,55.0]
[1693933771573,4.94461036,20.274,20.259,7.7]
[1693933771872,4.94461036,20.274,20.26,55.0]
[1693933772072,7.694,20.275,20.26,62.699]
[1693933772366,4.94461036,20.277,20.26,92.249]
[1693933772575,4.94461036,20.277,20.26,116.81840225]
[1693933773456,4.94461036,20.277,20.26,92.249]
[1693933773660,116.944,20.276,20.254,39.33267521]
[1693933773961,29.55,20.27,20.243,7.706]
[1693933774163,7.699,20.262,20.24,29.55]
[1693933774470,7.701,20.255,20.24,37.257]
[1693933774656,7.701,20.257,20.24,37.257]
[1693933774863,24.878,20.259,20.24,37.257]
[1693933775266,94.23001,20.258,20.24,37.257]
[1693933775658,98.2521,20.257,20.24,37.257]
[1693933776275,98.2521,20.257,20.24,29.55]
[1693933776472,55.0,20.256,20.24,29.55]
[1693933777670,55.0,20.256,20.24,37.257]
[1693933777872,98.2521,20.257,20.24,37.257]
[1693933778067,98.2521,20.257,20.24,57.107]
[1693933778373,98.2521,20.257,20.24,106.57740225]
[1693933778561,39.23001,20.258,20.24,106.57740225]
[1693933778761,53.8898221,20.262,20.241,95.66731225]
[1693933779073,20.0,20.261,20.246,7.705]
[1693933779392,20.0,20.261,20.247,55.0]
[1693933780759,55.0,20.26,20.241,16.09791]
[1693933780956,55.0,20.26,20.238,7.707]
[1693933781372,20.0,20.259,20.229,24.905]
[1693933781575,20.0,20.259,20.223,24.922]
[1693933781576,49.39,20.25,20.227,7.712]
[1693933781762,55.0,20.249,20.229,7.711]
[1693933782073,149.9922,20.249,20.229,7.711]
[1693933782265,190.134493,20.249,20.229,7.711]
[1693933782878,135.134493,20.249,20.23,49.39]
[1693933783065,135.134493,20.249,20.231,7.71]
[1693933784361,135.134493,20.249,20.23,7.711]
[1693933784664,135.134493,20.249,20.231,55.0]
[1693933786062,135.134493,20.249,20.23,7.711]
[1693933786262,135.134493,20.249,20.231,55.0]
[1693933786464,135.134493,20.249,20.232,7.71]
[1693933786773,135.134493,20.249,20.233,55.0]
[1693933787075,135.134493,20.249,20.229,7.711]
[1693933787374,135.134493,20.249,20.231,7.71]
[1693933787570,135.134493,20.249,20.23,55.0]
[1693933787760,55.0,20.248,20.23,55.0]
[1693933788164,135.134493,20.249,20.231,7.71]
[1693933788567,135.134493,20.249,20.232,55.0]
[1693933788880,135.134493,20.249,20.232,62.71]
[1693933790478,135.134493,20.249,20.232,55.0]
[1693933790665,135.134493,20.249,20.228,32.28040225]
[1693933790867,135.134493,20.249,20.23,7.711]
[1693933791767,135.134493,20.249,20.227,40.14229248]
[1693933791970,135.134493,20.249,20.228,55.0]
[1693933792167,135.134493,20.249,20.226,24.918]
[1693933792168,135.134493,20.249,20.227,55.0]
[1693933792973,135.134493,20.249,20.227,71.10905]
[1693933793186,135.134493,20.249,20.229,7.711]
[1693933793378,135.134493,20.249,20.23,55.0]
[1693933793983,135.134493,20.249,20.23,62.711]
[1693933798888,135.134493,20.249,20.23,103.38706225]
[1693933799484,135.134493,20.249,20.23,48.38706225]
[1693933799679,135.134493,20.249,20.224,15.09787443]
[1693933799680,147.67278262,20.249,20.224,15.09787443]
[1693933799881,12.53828962,20.248,20.224,22.81087443]
[1693933800800,55.0,20.247,20.224,22.81087443]
[1693933801696,67.53828962,20.247,20.224,22.81087443]
[1693933802178,55.0,20.247,20.224,77.20087443]
[1693933802374,55.0,20.248,20.224,22.81087443]
[1693933802784,135.134493,20.249,20.224,22.81087443]
[1693933802982,135.134493,20.249,20.225,24.56940225]
[1693933803285,135.134493,20.249,20.227,7.712]
[1693933803484,135.134493,20.249,20.23,29.68]
[1693933803794,135.134493,20.249,20.231,55.0]
[1693933804177,135.134493,20.249,20.228,7.711]
[1693933804178,135.134493,20.249,20.229,55.0]
[1693933804381,125.42755429,20.249,20.229,55.0]
[1693933804987,125.42755429,20.249,20.229,62.711]
[1693933806388,137.96584391,20.249,20.229,16.10746]
[1693933806591,137.96584391,20.249,20.229,23.81846]
[1693933807089,137.96584391,20.249,20.229,16.10746]
[1693933807292,55.0,20.248,20.229,16.10746]
[1693933807484,55.0,20.248,20.227,7.712]
[1693933809003,55.0,20.248,20.228,55.0]
[1693933809695,55.0,20.248,20.228,62.711]
[1693933810683,55.0,20.248,20.228,55.0]
[1693933810885,55.0,20.248,20.226,62.712]
[1693933811506,125.42755429,20.249,20.232,7.71]
[1693933811696,125.42755429,20.249,20.233,55.0]
[1693933812197,125.42755429,20.249,20.231,55.0]
[1693933812593,125.42755429,20.249,20.231,103.72786]
[1693933812791,85.28526129,20.249,20.232,20.0]
[1693933812987,85.28526129,20.249,20.233,62.709]
[1693933813293,85.28526129,20.249,20.234,20.0]
[1693933813493,85.28526129,20.249,20.235,55.0]
[1693933815404,85.28526129,20.249,20.235,62.709]
[1693933819690,2.58079701,20.269,20.24,29.68]
[1693933819901,12.53828962,20.266,20.244,7.705]
[1693933820110,12.53828962,20.266,20.247,7.704]
[1693933820289,95.2852,20.261,20.248,55.0]
[1693933820604,95.2852,20.261,20.245,62.705]
[1693933821492,95.2852,20.261,20.226,25.79776177]
[1693933821493,148.4,20.26,20.226,25.79776177]
[1693933821693,29.68,20.25,20.22,148.4]
[1693933821898,4.94461036,20.249,20.231,23.81586]
[1693933822403,4.94461036,20.251,20.231,23.81586]
[1693933822701,24.94461036,20.251,20.231,7.71]
[1693933823595,4.94461036,20.249,20.231,7.71]
[1693933823898,4.94461036,20.249,20.234,7.709]
[1693933824101,4.94461036,20.249,20.235,55.0]
[1693933824706,59.94461036,20.249,20.235,55.0]
[1693933825101,59.94461036,20.249,20.237,7.708]
[1693933825305,59.94461036,20.249,20.235,62.709]
[1693933825914,4.94461036,20.249,20.235,62.709]
[1693933826305,4.94461036,20.255,20.235,62.709]
[1693933826517,4.94461036,20.249,20.235,62.709]
[1693933827797,12.53828962,20.254,20.235,62.709]
[1693933827798,24.94461036,20.253,20.235,62.709]
[1693933828003,37.48289998,20.253,20.235,62.709]
[1693933828406,100.19189998,20.253,20.235,62.709]
[1693933828615,4.94461036,20.251,20.233,7.71]
[1693933828813,24.94461036,20.251,20.233,7.71]
[1693933829317,4.94461036,20.249,20.233,7.71]
[1693933829827,4.94461036,20.249,20.234,55.0]
[1693933830122,4.94461036,20.249,20.232,55.0]
[1693933830417,4.94461036,20.249,20.232,62.71]
[1693933830615,4.94461036,20.249,20.232,55.0]
[1693933830811,4.94461036,20.249,20.231,55.0]
[1693933831012,4.94461036,20.25,20.231,55.0]
[1693933831317,4.94461036,20.249,20.228,46.62746069]
[1693933831519,17.48289998,20.249,20.228,7.711]
[1693933831706,4.94461036,20.247,20.228,7.711]
[1693933832017,4.94461036,20.245,20.228,7.711]
[1693933832424,4.94461036,20.246,20.226,7.712]
[1693933832615,55.0,20.245,20.226,7.712]
[1693933833009,55.0,20.246,20.226,7.712]
[1693933833325,4.94461036,20.245,20.226,7.712]
[1693933833920,4.94461036,20.245,20.227,16.10905]
[1693933834115,4.94461036,20.248,20.23,7.711]
[1693933834513,24.71944436,20.248,20.23,7.711]
[1693933834717,4.94461036,20.248,20.23,7.711]
[1693933834915,4.94461036,20.248,20.231,55.0]
[1693933835223,4.94461036,20.248,20.232,23.81507]
[1693933835425,4.94461036,20.248,20.233,55.0]
[1693933835625,4.94461036,20.248,20.233,62.709]
[1693933836414,4.94461036,20.251,20.233,62.709]
[1693933836624,4.94461036,20.253,20.233,62.709]
[1693933836811,62.709,20.25,20.234,20.0]
[1693933837008,4.94461036,20.261,20.238,86.961]
[1693933837317,4.94461036,20.261,20.239,55.0]
[1693933837519,4.94461036,20.261,20.244,7.705]
[1693933837520,103.82461036,20.261,20.244,7.705]
[1693933838317,20.0,20.26,20.244,7.705]
[1693933838511,4.94461036,20.259,20.244,7.705]
[1693933839521,4.94461036,20.259,20.242,7.706]
[1693933839710,4.94461036,20.259,20.243,55.0]
[1693933840624,4.94461036,20.259,20.234,98.345]
[1693933840625,49.41,20.25,20.23,138.42150196]
[1693933840830,17.48289998,20.249,20.224,22.81087443]
[1693933841011,55.0,20.248,20.224,22.81087443]
[1693933841334,4.94461036,20.247,20.224,22.81087443]
[1693933841520,55.0,20.246,20.224,22.81087443]
[1693933841712,4.94461036,20.245,20.224,22.81087443]
[1693933842614,4.94461036,20.246,20.231,7.71]
[1693933842932,12.53828962,20.256,20.231,7.71]
[1693933842933,4.94461036,20.255,20.232,20.0]
[1693933843226,4.94461036,20.259,20.238,7.707]
[1693933843406,17.48289998,20.259,20.239,55.0]
[1693933843818,17.48289998,20.259,20.237,55.0]
[1693933844033,17.48289998,20.259,20.238,7.708]
[1693933844714,17.48289998,20.259,20.239,55.0]
[1693933844919,4.94461036,20.257,20.235,7.709]
[1693933845124,17.48289998,20.257,20.237,7.708]
[1693933845330,17.48289998,20.257,20.238,55.0]
[1693933845513,17.48289998,20.257,20.238,62.708]
[1693933846630,17.48289998,20.257,20.233,16.10427]
[1693933846823,12.53828962,20.256,20.233,16.10427]
[1693933847016,12.53828962,20.256,20.225,24.919]
[1693933847017,4.94461036,20.249,20.228,7.711]
[1693933847222,4.94461036,20.249,20.22,98.82]
[1693933847223,17.48289998,20.249,20.226,7.712]
[1693933847739,55.0,20.248,20.22,98.82]
[1693933847915,4.94461036,20.247,20.223,7.713]
[1693933848231,67.53828962,20.246,20.224,20.0]
[1693933848436,4.94461036,20.245,20.224,20.0]
[1693933848633,49.41,20.24,20.221,7.714]
[1693933849322,49.41,20.23,20.21,24.56940225]
[1693933849528,49.41,20.23,20.19,463.006635]
[1693933849529,67.53828962,20.229,20.199,7.723]
[1693933849829,49.41,20.22,20.199,7.723]
[1693933850228,57.125,20.22,20.196,39.22491348]
[1693933850437,57.125,20.22,20.198,7.723]
[1693933850732,55.0,20.219,20.198,7.723]
[1693933850934,7.717,20.215,20.194,24.957]
[1693933851122,7.717,20.215,20.197,7.723]
[1693933851325,49.41,20.21,20.192,7.725]
[1693933851527,7.719,20.209,20.192,7.725]
[1693933851830,7.719,20.209,20.187,39.35936726]
[1693933852031,49.41,20.21,20.191,7.725]
[1693933852237,57.129,20.21,20.191,7.725]
[1693933852737,57.129,20.21,20.192,20.0]
[1693933852931,7.719,20.21,20.193,7.725]
[1693933853315,7.719,20.21,20.183,153.47118572]